fUST/lending_fUST_20260116
["ID","MTS","AMOUNT","RATE_DAILY","PERIOD"]
[402075058,1768509032129,-250.0,9.682e-05,2]
[402075059,1768509032139,-162.380719,9.682e-05,2]
[402075060,1768509032148,-168.3888056,9.682e-05,2]
[402075061,1768509032158,-250.0,9.682e-05,2]
[402075062,1768509032167,-174.61919141,9.682e-05,2]
[402075063,1768509032177,-1957.856,9.682e-05,2]
[402075064,1768509032188,-302.86950393,9.682e-05,2]
[402075065,1768509032198,-181.08010149,9.682e-05,2]
[402075066,1768509032208,-187.78006525,9.682e-05,2]
[402075067,1768509032217,-250.0,9.682e-05,2]
[402075068,1768509032226,-194.72792766,9.682e-05,2]
[402075069,1768509032236,-250.0,9.682e-05,2]
[402075070,1768509032245,-201.93286099,9.682e-05,2]
[402075071,1768509032255,-191.51219832,9.682e-05,2]
[402075072,1768509032267,-1000.0,9.682e-05,2]
[402075073,1768509032276,-209.40437684,9.682e-05,2]
[402075074,1768509032285,-1000.0,9.682e-05,2]
[402075075,1768509032295,-217.15233878,9.682e-05,2]
[402075076,1768509032305,-1000.0,9.682e-05,2]
[402075077,1768509032314,-225.18697532,9.682e-05,2]
[402075078,1768509032324,-222.19113968,9.682e-05,2]
[402075079,1768509032334,-233.51889341,9.682e-05,2]
[402075080,1768509032344,-242.15909246,9.682e-05,2]
[402075081,1768509032353,-251.11897888,9.682e-05,2]
[402075082,1768509032363,-151.0,9.682e-05,2]
[402075083,1768509032372,-260.4103811,9.682e-05,2]
[402075084,1768509032381,-270.0455652,9.682e-05,2]
[402075085,1768509032391,-280.03725112,9.682e-05,2]
[402075086,1768509032404,-290.39862941,9.682e-05,2]
[402075087,1768509032413,-2150.738,9.682e-05,2]
[402075088,1768509032423,-301.1433787,9.682e-05,2]
[402075089,1768509032432,-500.0,9.682e-05,2]
[402075090,1768509032442,-234.17605157,9.687e-05,2]
[402075091,1768509032451,-510823.23397127,9.688e-05,2]
[402075092,1768509032464,-373.11910904,9.688e-05,2]
[402075177,1768509038613,-639.47247228,9.603e-05,2]
[402075179,1768509038622,-63051.51419374,9.688e-05,2]
[402075353,1768509041094,-473.48684147,9.688e-05,2]
[402075354,1768509041107,-574.75499537,9.688e-05,2]
[402075355,1768509041125,-3570.18917919,9.688e-05,2]
[402075396,1768509043106,-151.0,9.688e-05,2]
[402075397,1768509043115,-609.24,9.709e-05,2]
[402075398,1768509043217,-454.355,9.709e-05,2]
[402075399,1768509043228,-1156.82488134,9.709e-05,2]
[402075400,1768509043237,-213.14839871,9.709e-05,2]
[402075401,1768509043246,-500.0,9.709e-05,2]
[402075402,1768509043255,-89.46925194,9.737e-05,2]
[402075446,1768509046167,-1457.0,9.582e-05,2]
[402075447,1768509046178,-1700.0,9.582e-05,2]
[402075455,1768509082119,184.4114172,0.00022468,120]
[402075460,1768509104234,184.647,9.391e-05,2]
[402075469,1768509152293,800.0,9.423e-05,2]
[402075470,1768509152338,800.0,9.352e-05,2]
[402075506,1768509212687,800.0,9.413e-05,2]
[402075516,1768509344459,800.0,9.418e-05,2]
[402075584,1768509393697,605.85177724,9.373e-05,2]
[402075591,1768509452562,800.0,9.393e-05,2]
[402075597,1768509480187,194.45,3.8e-06,2]
[402075598,1768509480475,194.45,3.8e-06,2]
[402075600,1768509480752,194.46,3.8e-06,2]
[402075950,1768510232037,-552.0,9.452e-05,2]
[402075951,1768510232047,-3432.82908099,9.452e-05,2]
[402075952,1768510232056,-159.41291442,9.457e-05,2]
[402075953,1768510232066,-300.0,9.47e-05,2]
[402075954,1768510232075,-1200.0,9.47e-05,2]
[402075955,1768510232084,-285.56,9.471e-05,2]
[402075956,1768510232094,-163.9232361,9.471e-05,2]
[402075957,1768510232103,-500.0,9.471e-05,2]
[402075958,1768510232113,-500.0,9.471e-05,2]
[402075959,1768510232122,-500.0,9.471e-05,2]
[402075960,1768510232131,-405.81670383,9.471e-05,2]
[402075961,1768510232141,-500.0,9.471e-05,2]
[402075963,1768510232150,-239.69598306,9.471e-05,2]
[402075965,1768510232160,-241.95586083,9.471e-05,2]
[402075967,1768510232169,-500.0,9.471e-05,2]
[402075969,1768510232178,-500.0,9.471e-05,2]
[402075971,1768510232187,-500.0,9.471e-05,2]
[402075973,1768510232198,-500.0,9.471e-05,2]
[402075975,1768510232207,-500.0,9.471e-05,2]
[402075977,1768510232217,-500.0,9.471e-05,2]
[402075979,1768510232227,-500.0,9.471e-05,2]
[402075981,1768510232238,-214.76180726,9.471e-05,2]
[402075983,1768510232247,-429.92917904,9.471e-05,2]
[402075984,1768510232257,-500.0,9.471e-05,2]
[402075986,1768510232266,-500.0,9.471e-05,2]
[402075988,1768510232276,-500.0,9.471e-05,2]
[402075990,1768510232285,-500.0,9.471e-05,2]
[402075992,1768510232294,-500.0,9.471e-05,2]
[402075994,1768510232303,-39410.13349165,9.472e-05,2]
[402076039,1768510232768,-74550.95203031,9.472e-05,2]
[402076303,1768510240826,-434.47876755,9.472e-05,2]
[402076304,1768510240884,-2063.33332766,9.472e-05,2]
[402076305,1768510240896,-718.92036755,9.472e-05,2]
[402076359,1768510246375,-158280.46382262,9.472e-05,2]
[402076373,1768510248680,4188.41309119,9.45e-05,2]
[402076374,1768510313764,300.0,8.572e-05,2]
[402076429,1768510507715,200.0,9.416e-05,2]
[402076489,1768510642571,220.37445262,0.00022436,120]
[402076552,1768510882106,169.03855554,0.00022435,120]
[402076581,1768511095612,56232.26977102,9.365e-05,2]
[402076582,1768511100083,-9831.0784127,9.365e-05,2]
[402076583,1768511100110,-10000.01,9.365e-05,2]
[402076584,1768511100129,-10000.01,9.365e-05,2]
[402076585,1768511100565,-10000.01,9.365e-05,2]
[402076586,1768511100591,-10000.01,9.365e-05,2]
[402076587,1768511100606,-10000.01,9.365e-05,2]
[402076588,1768511100625,-10000.01,9.365e-05,2]
[402076589,1768511100699,-10000.01,9.365e-05,2]
[402076590,1768511100835,-10000.01,9.365e-05,2]
[402076591,1768511102585,-300.0,9.364e-05,2]
[402076592,1768511102618,-300.0,9.364e-05,2]
[402076593,1768511102683,-8800.01,9.365e-05,2]
[402076594,1768511111746,-300.0,9.364e-05,2]
[402076595,1768511111780,-1200.0,9.364e-05,2]
[402076596,1768511111840,-7000.01,9.365e-05,2]
[402076597,1768511111868,-10000.01,9.365e-05,2]
[402076598,1768511112011,-10000.01,9.365e-05,2]
[402076599,1768511112431,-10000.01,9.365e-05,2]
[402076600,1768511112459,-10000.01,9.365e-05,2]
[402076601,1768511112484,-10000.01,9.365e-05,2]
[402076602,1768511112526,-10000.01,9.365e-05,2]
[402076603,1768511112720,-10000.01,9.365e-05,2]
[402076604,1768511112787,5000.0,0.0001,10]
[402076605,1768511120542,5000.0,0.0001,10]
[402076606,1768511126905,-10000.01,9.365e-05,2]
[402076607,1768511127108,-10000.01,9.365e-05,2]
[402076608,1768511128560,2000.0,0.0001,10]
[402076609,1768511130016,-10000.01,9.365e-05,2]
[402076610,1768511151497,-5000.0,9.179e-05,2]
[402076611,1768511151541,-0.01,9.272e-05,2]
[402076612,1768511153359,-4999.99,9.272e-05,2]
[402076613,1768511153664,-0.03,9.365e-05,2]
[402076614,1768511153683,-10000.01,9.365e-05,2]
[402076615,1768511153716,-10000.01,9.365e-05,2]
[402076616,1768511153738,-10000.01,9.365e-05,2]
[402076617,1768511153775,-10000.01,9.365e-05,2]
[402076618,1768511153794,-10000.01,9.365e-05,2]
[402076619,1768511154361,-10000.01,9.365e-05,2]
[402076620,1768511155783,373.14,5.574e-05,2]
[402076621,1768511156725,746.28,5.839e-05,2]
[402076622,1768511157413,-1119.42,6.105e-05,2]
[402076623,1768511157462,-7761.17,9.365e-05,2]
[402076624,1768511157508,-10000.01,9.365e-05,2]
[402076625,1768511157639,-1492.56,6.37e-05,2]
[402076626,1768511157680,-7014.89,9.365e-05,2]
[402076627,1768511157737,-10000.01,9.365e-05,2]
[402076628,1768511157933,-10000.01,9.365e-05,2]
[402076629,1768511157988,-1865.7,6.635e-05,2]
[402076630,1768511158039,-6268.61,9.365e-05,2]
[402076631,1768511158098,-10000.01,9.365e-05,2]
[402076632,1768511160675,-2238.84,6.901e-05,2]
[402076652,1768511162614,-450.37351012,7.166e-05,2]
[402076654,1768511166111,-268.44803052,7.166e-05,2]
[402076655,1768511168147,-203.20803785,7.094e-05,2]
[402076656,1768511171438,-217.56550528,7.094e-05,2]
[402076657,1768511174481,-283.55003313,7.094e-05,2]
[402076658,1768511177157,-243.14212557,7.094e-05,2]
[402076659,1768511185309,-500.0,7.094e-05,2]
[402076660,1768511187646,-808.79097989,7.094e-05,2]
[402076661,1768511195919,-228.75034092,7.094e-05,2]
[402076662,1768511197856,-169.83519067,7.094e-05,2]
[402076663,1768511199913,-264.74069852,7.094e-05,2]
[402076664,1768511199962,-2080.41708817,7.094e-05,2]
[402076665,1768511199996,-1893.15845936,7.166e-05,2]
[402076666,1768511200062,-2052.85890494,7.432e-05,2]
[402076667,1768511201394,-177.52279,7.432e-05,2]
[402076668,1768511202790,-754.73830506,7.432e-05,2]
[402076669,1768511202824,-3358.26,7.697e-05,2]
[402076670,1768511202856,-300.0,7.85e-05,2]
[402076671,1768511202890,-300.0,7.85e-05,2]
[402076672,1768511202922,-274.01338988,7.85e-05,2]
[402076673,1768511203040,-25.98661012,7.85e-05,2]
[402076674,1768511208896,-300.0,7.85e-05,2]
[402076675,1768511208931,-300.0,7.85e-05,2]
[402076676,1768511208964,-300.0,7.85e-05,2]
[402076677,1768511209002,-300.0,7.85e-05,2]
[402076678,1768511209035,-300.0,7.85e-05,2]
[402076679,1768511209068,-300.0,7.85e-05,2]
[402076680,1768511209099,-300.0,7.85e-05,2]
[402076681,1768511209130,-300.0,7.85e-05,2]
[402076682,1768511209161,-300.0,7.85e-05,2]
[402076683,1768511209191,-300.0,7.85e-05,2]
[402076684,1768511209222,-300.0,7.85e-05,2]
[402076685,1768511209254,-300.0,7.85e-05,2]
[402076686,1768511209471,-2800.01,7.963e-05,2]
[402076687,1768511210158,155.0,1e-08,2]
[402076688,1768511211943,-307.7942316,7.771e-05,2]
[402076689,1768511211974,-931.39,7.963e-05,2]
[402076690,1768511215162,-5000.0,9.272e-05,2]
[402076691,1768511225440,0.01,9.272e-05,2]
[402076692,1768511225463,4999.99,9.272e-05,2]
[402076693,1768511232426,157.16,6.447e-05,2]
[402076694,1768511232826,314.32,6.754e-05,2]
[402076695,1768511233327,471.48,7.061e-05,2]
[402076696,1768511233681,628.64,7.368e-05,2]
[402076697,1768511234055,785.8,7.675e-05,2]
[402076698,1768511234467,942.96,7.982e-05,2]
[402076699,1768511234731,250.0,7.88e-05,2]
[402076700,1768511234875,1100.12,8.289e-05,2]
[402076701,1768511235267,1257.28,8.596e-05,2]
[402076702,1768511235711,1414.44,8.903e-05,2]
[402076703,1768511245815,-1571.6,9.21e-05,2]
[402076704,1768511247530,5000.0,9.21e-05,2]
[402076716,1768511309683,188.59,7.734e-05,2]
[402076717,1768511310081,235.74,8.056e-05,2]
[402076718,1768511310497,282.89,8.379e-05,2]
[402076719,1768511310911,330.04,8.701e-05,2]
[402076725,1768511323940,-377.18,9.023e-05,2]
[402076726,1768511328534,5000.0,8.994e-05,2]
[402076729,1768511339450,-183.41252925,9.146e-05,2]
[402076730,1768511349342,162.0,7.5e-07,2]
[402076731,1768511350477,2599.18076353,9.147e-05,2]
[402076732,1768511381668,178.48,7.431e-05,2]
[402076733,1768511382092,208.22,7.717e-05,2]
[402076734,1768511382494,237.97,8.003e-05,2]
[402076735,1768511383391,267.71,8.288e-05,2]
[402076736,1768511383847,297.46,8.574e-05,2]
[402076762,1768511432249,-2600.0,9.27e-05,2]
[402076763,1768511432261,-2400.0,9.27e-05,2]
[402076764,1768511432271,-300.0,9.364e-05,2]
[402076765,1768511432280,-50.0,9.364e-05,2]
[402076792,1768511438452,-250.0,9.364e-05,2]
[402076794,1768511438462,-300.0,9.364e-05,2]
[402076796,1768511438472,-300.0,9.364e-05,2]
[402076799,1768511438482,-1200.0,9.364e-05,2]
[402076801,1768511438491,-6692.35934221,9.365e-05,2]
[402076803,1768511438506,-13819.92501598,9.365e-05,2]
[402076805,1768511438517,-706.64386769,9.365e-05,2]
[402076808,1768511438536,-15002.51944897,9.365e-05,2]
[402076811,1768511438551,-3471.74130692,9.365e-05,2]
[402077011,1768511440671,-2270.071,9.365e-05,2]
[402077012,1768511440684,-426.13638038,9.365e-05,2]
[402077023,1768511440806,-3e-08,9.365e-05,2]
[402077026,1768511440817,-1903.27946898,9.365e-05,2]
[402077291,1768511443564,-4042.36482029,9.365e-05,2]
[402077293,1768511443576,-1695.2777731,9.365e-05,2]
[402077297,1768511443598,-971.15581075,9.365e-05,2]
[402077299,1768511443608,-6005.67532547,9.365e-05,2]
[402077301,1768511443619,-50637.14853918,9.365e-05,2]
[402077579,1768511446510,-1528.81235676,9.272e-05,2]
[402077582,1768511446537,-3471.18764324,9.272e-05,2]
[402077584,1768511446546,-112597.79618365,9.365e-05,2]
[402078799,1768511486156,261.09897197,8.819e-05,2]
[402078837,1768511569906,400.79740006,8.794e-05,2]
[402078838,1768511575459,-219.08,9e-05,2]
[402078845,1768511667393,-5000.0,9.179e-05,2]
[402078846,1768511681339,0.01,9.179e-05,2]
[402078847,1768511681362,4999.99,9.179e-05,2]
[402078852,1768511713509,-5000.0,9.189e-05,2]
[402078853,1768511726235,0.01,9.189e-05,2]
[402078854,1768511726259,4999.99,9.189e-05,2]
[402078856,1768511759444,-5000.0,9.189e-05,2]
[402078858,1768511771527,0.01,9.189e-05,2]
[402078859,1768511771552,4999.99,9.189e-05,2]
[402078862,1768511789558,326.68755069,8.906e-05,2]
[402078866,1768511805401,-2713.14235676,9.189e-05,2]
[402078921,1768511865196,163.802678,4.181e-05,2]
[402078922,1768511865414,163.802678,5.574e-05,2]
[402078923,1768511865614,163.802678,6.968e-05,2]
[402078924,1768511865819,163.802678,8.362e-05,2]
[402078953,1768512097894,-656.84990479,9.198e-05,2]
[402079027,1768512189244,-417.66118965,9.198e-05,2]
[402079244,1768512516720,2367.84063843,7.3e-05,2]
[402079262,1768512562059,169.09679114,0.00022331,120]
[402079329,1768512633191,-445.202766,9.254e-05,2]
[402079330,1768512633201,-786.1928093,9.254e-05,2]
[402079337,1768512638487,-517.42876019,9.254e-05,2]
[402079338,1768512638498,-356.01301693,9.254e-05,2]
[402079388,1768512639130,-298.22141358,9.254e-05,2]
[402079390,1768512639140,-162.380719,9.254e-05,2]
[402079392,1768512639150,-168.3888056,9.254e-05,2]
[402079394,1768512639161,-174.61919141,9.254e-05,2]
[402079396,1768512639170,-2150.738,9.254e-05,2]
[402079399,1768512639180,-181.08010149,9.254e-05,2]
[402079401,1768512639190,-187.78006525,9.254e-05,2]
[402079403,1768512639200,-194.72792766,9.254e-05,2]
[402079405,1768512639210,-201.93286099,9.254e-05,2]
[402079407,1768512639220,-209.40437684,9.254e-05,2]
[402079409,1768512639230,-217.15233878,9.254e-05,2]
[402079411,1768512639240,-225.18697532,9.254e-05,2]
[402079413,1768512639251,-233.51889341,9.254e-05,2]
[402079415,1768512639261,-242.15909246,9.254e-05,2]
[402079416,1768512639271,-251.11897888,9.254e-05,2]
[402079419,1768512639281,-260.4103811,9.254e-05,2]
[402079421,1768512639290,-270.0455652,9.254e-05,2]
[402079423,1768512639300,-280.03725112,9.254e-05,2]
[402079425,1768512639309,-290.39862941,9.254e-05,2]
[402079427,1768512639318,-301.1433787,9.254e-05,2]
[402079429,1768512639327,-500.0,9.256e-05,2]
[402079431,1768512639336,-500.0,9.256e-05,2]
[402079433,1768512639346,-500.0,9.256e-05,2]
[402079435,1768512639358,-500.0,9.256e-05,2]
[402079437,1768512639367,-500.0,9.256e-05,2]
[402079439,1768512639377,-500.0,9.256e-05,2]
[402079441,1768512639386,-500.0,9.256e-05,2]
[402079443,1768512639396,-500.0,9.256e-05,2]
[402079445,1768512639405,-500.0,9.256e-05,2]
[402079447,1768512639414,-500.0,9.256e-05,2]
[402079449,1768512639426,-500.0,9.256e-05,2]
[402079451,1768512639435,-500.0,9.256e-05,2]
[402079453,1768512639445,-191.00082252,9.256e-05,2]
[402079455,1768512639455,-500.0,9.256e-05,2]
[402079457,1768512639464,-500.0,9.256e-05,2]
[402079459,1768512639475,-500.0,9.256e-05,2]
[402079461,1768512639484,-500.0,9.256e-05,2]
[402079463,1768512639494,-500.0,9.256e-05,2]
[402079465,1768512639503,-500.0,9.256e-05,2]
[402079467,1768512639512,-500.0,9.256e-05,2]
[402079469,1768512639523,-500.0,9.256e-05,2]
[402079471,1768512639532,-500.0,9.256e-05,2]
[402079473,1768512639541,-500.0,9.256e-05,2]
[402079475,1768512639550,-500.0,9.256e-05,2]
[402079477,1768512639560,-500.0,9.256e-05,2]
[402079479,1768512639569,-500.0,9.256e-05,2]
[402079481,1768512639578,-500.0,9.256e-05,2]
[402079482,1768512639587,-500.0,9.256e-05,2]
[402079484,1768512639597,-500.0,9.256e-05,2]
[402079486,1768512639606,-361.09816765,9.256e-05,2]
[402079603,1768512640703,-138.90183235,9.256e-05,2]
[402079605,1768512640712,-500.0,9.256e-05,2]
[402079607,1768512640722,-500.0,9.256e-05,2]
[402079609,1768512640731,-500.0,9.256e-05,2]
[402079611,1768512640741,-500.0,9.256e-05,2]
[402079613,1768512640750,-500.0,9.256e-05,2]
[402079615,1768512640759,-500.0,9.256e-05,2]
[402079617,1768512640768,-500.0,9.256e-05,2]
[402079619,1768512640778,-304.93703757,9.256e-05,2]
[402079621,1768512640787,-500.0,9.256e-05,2]
[402079623,1768512640796,-500.0,9.256e-05,2]
[402079625,1768512640805,-500.0,9.256e-05,2]
[402079627,1768512640814,-500.0,9.256e-05,2]
[402079629,1768512640823,-500.0,9.256e-05,2]
[402079631,1768512640832,-500.0,9.256e-05,2]
[402079633,1768512640842,-500.0,9.256e-05,2]
[402079635,1768512640851,-500.0,9.256e-05,2]
[402079637,1768512640860,-500.0,9.256e-05,2]
[402079639,1768512640870,-500.0,9.256e-05,2]
[402079641,1768512640879,-500.0,9.256e-05,2]
[402079643,1768512640888,-500.0,9.256e-05,2]
[402079645,1768512640898,-398.43777521,9.256e-05,2]
[402079647,1768512640908,-500.0,9.256e-05,2]
[402079649,1768512640918,-25.87441323,9.256e-05,2]
[402079651,1768512640930,-474.12558677,9.256e-05,2]
[402079653,1768512640940,-500.0,9.256e-05,2]
[402079655,1768512640949,-513.89515812,9.256e-05,2]
[402079657,1768512640959,-500.0,9.256e-05,2]
[402079659,1768512640968,-500.0,9.256e-05,2]
[402079661,1768512640977,-500.0,9.256e-05,2]
[402079663,1768512640986,-500.0,9.256e-05,2]
[402079665,1768512640997,-500.0,9.256e-05,2]
[402079667,1768512641007,-300.0,9.256e-05,2]
[402079669,1768512641016,-300.0,9.256e-05,2]
[402079671,1768512641026,-1200.0,9.256e-05,2]
[402079673,1768512641035,-191.97366787,9.257e-05,2]
[402079675,1768512641045,-232.17728076,9.257e-05,2]
[402079677,1768512641054,-550.0,9.257e-05,2]
[402079679,1768512641063,-500.0,9.259e-05,2]
[402079681,1768512641072,-4036.47376741,9.26e-05,2]
[402079862,1768512643663,-3170.68801967,9.26e-05,2]
[402080154,1768512646709,-4157.12833092,9.26e-05,2]
[402080157,1768512646721,-238638.14793095,9.26e-05,2]
[402080162,1768512646771,-2006.6125486,9.26e-05,2]
[402080389,1768512961658,640.42,0.00027397,120]
[402080423,1768513119307,-221.51692933,9.119e-05,2]
[402080424,1768513150492,-3725.08396332,9.156e-05,2]
[402080425,1768513152612,-10000.01,9.156e-05,2]
[402080426,1768513152790,-10000.01,9.156e-05,2]
[402080427,1768513152999,-10000.01,9.156e-05,2]
[402080428,1768513153033,-10000.01,9.156e-05,2]
[402080429,1768513155683,-10000.01,9.156e-05,2]
[402080441,1768513224094,500.0,8.982e-05,2]
[402080454,1768513279484,500.0,8.981e-05,2]
[402080455,1768513279554,500.0,8.981e-05,2]
[402080456,1768513280306,500.0,8.981e-05,2]
[402080457,1768513280750,500.0,8.981e-05,2]
[402080458,1768513281552,500.0,8.981e-05,2]
[402080488,1768513448287,500.0,8.981e-05,2]
[402080489,1768513448795,500.0,8.981e-05,2]
[402080490,1768513449379,500.0,8.981e-05,2]
[402080491,1768513449893,500.0,8.981e-05,2]
[402080492,1768513450117,500.0,8.981e-05,2]
[402080493,1768513511536,5000.01,8.255e-05,2]
[402080494,1768513511559,5000.0,8.255e-05,2]
[402080495,1768513573157,500.0,8.881e-05,2]
[402080496,1768513586415,-500.0,9.018e-05,2]
[402080549,1768513771985,600000.0,0.00027397,120]
[402080940,1768513837686,-300.0,9.115e-05,2]
[402080942,1768513837696,-300.0,9.115e-05,2]
[402080944,1768513837705,-548.0,9.115e-05,2]
[402080946,1768513837714,-1200.0,9.115e-05,2]
[402080948,1768513837725,-500.0,9.116e-05,2]
[402080949,1768513837735,-500.0,9.116e-05,2]
[402080951,1768513837744,-400.0,9.116e-05,2]
[402080953,1768513837755,-47.08613463,9.116e-05,2]
[402080956,1768513837781,-452.91386537,9.116e-05,2]
[402080958,1768513837791,-319.12863052,9.116e-05,2]
[402080960,1768513837802,-180.87136948,9.116e-05,2]
[402080962,1768513837811,-500.0,9.116e-05,2]
[402080964,1768513837820,-342.86433701,9.116e-05,2]
[402080967,1768513837832,-157.13566299,9.116e-05,2]
[402080969,1768513837841,-369.67294722,9.116e-05,2]
[402080971,1768513837851,-130.32705278,9.116e-05,2]
[402080973,1768513837860,-500.0,9.116e-05,2]
[402080975,1768513837870,-500.0,9.116e-05,2]
[402080977,1768513837879,-563.64288229,9.116e-05,2]
[402080979,1768513837888,-500.0,9.116e-05,2]
[402080981,1768513837897,-377.68130312,9.116e-05,2]
[402080983,1768513837907,-122.31869688,9.116e-05,2]
[402080985,1768513837916,-233.49597971,9.116e-05,2]
[402080987,1768513837927,-266.50402029,9.116e-05,2]
[402080989,1768513837936,-500.0,9.116e-05,2]
[402080991,1768513837945,-500.0,9.116e-05,2]
[402080993,1768513837954,-500.0,9.116e-05,2]
[402080995,1768513837964,-500.0,9.116e-05,2]
[402080997,1768513837973,-252.94170998,9.116e-05,2]
[402081129,1768513839220,-247.05829002,9.116e-05,2]
[402081131,1768513839230,-500.0,9.116e-05,2]
[402081133,1768513839239,-500.0,9.116e-05,2]
[402081135,1768513839249,-500.0,9.116e-05,2]
[402081137,1768513839258,-500.0,9.116e-05,2]
[402081139,1768513839268,-500.0,9.116e-05,2]
[402081141,1768513839278,-500.0,9.116e-05,2]
[402081143,1768513839288,-500.0,9.116e-05,2]
[402081145,1768513839298,-500.0,9.116e-05,2]
[402081147,1768513839309,-500.0,9.116e-05,2]
[402081149,1768513839318,-500.0,9.116e-05,2]
[402081151,1768513839327,-500.0,9.116e-05,2]
[402081153,1768513839337,-500.0,9.116e-05,2]
[402081155,1768513839346,-500.0,9.116e-05,2]
[402081157,1768513839356,-500.0,9.116e-05,2]
[402081159,1768513839367,-500.0,9.116e-05,2]
[402081161,1768513839377,-500.0,9.116e-05,2]
[402081163,1768513839387,-500.0,9.116e-05,2]
[402081165,1768513839396,-500.0,9.116e-05,2]
[402081167,1768513839406,-500.0,9.116e-05,2]
[402081169,1768513839415,-500.0,9.116e-05,2]
[402081171,1768513839425,-500.0,9.116e-05,2]
[402081173,1768513839434,-500.0,9.116e-05,2]
[402081175,1768513839443,-500.0,9.116e-05,2]
[402081177,1768513839452,-500.0,9.116e-05,2]
[402081179,1768513839461,-225.21833675,9.116e-05,2]
[402081181,1768513839470,-500.0,9.116e-05,2]
[402081183,1768513839480,-500.0,9.116e-05,2]
[402081186,1768513839489,-500.0,9.116e-05,2]
[402081189,1768513839498,-500.0,9.116e-05,2]
[402081192,1768513839507,-500.0,9.116e-05,2]
[402081194,1768513839516,-500.0,9.116e-05,2]
[402081196,1768513839525,-500.0,9.116e-05,2]
[402081198,1768513839534,-405.59374977,9.116e-05,2]
[402081201,1768513839546,-94.40625023,9.116e-05,2]
[402081203,1768513839555,-500.0,9.116e-05,2]
[402081205,1768513839563,-443.40029037,9.116e-05,2]
[402081301,1768513840484,-56.59970963,9.116e-05,2]
[402081303,1768513840494,-500.0,9.116e-05,2]
[402081305,1768513840504,-500.0,9.116e-05,2]
[402081307,1768513840513,-500.0,9.116e-05,2]
[402081309,1768513840523,-500.0,9.116e-05,2]
[402081311,1768513840534,-500.0,9.116e-05,2]
[402081313,1768513840543,-500.0,9.116e-05,2]
[402081315,1768513840553,-500.0,9.116e-05,2]
[402081317,1768513840564,-500.0,9.116e-05,2]
[402081319,1768513840573,-500.0,9.116e-05,2]
[402081321,1768513840584,-500.0,9.116e-05,2]
[402081323,1768513840594,-500.0,9.116e-05,2]
[402081325,1768513840604,-500.0,9.116e-05,2]
[402081327,1768513840615,-500.0,9.116e-05,2]
[402081329,1768513840626,-500.0,9.116e-05,2]
[402081331,1768513840636,-500.0,9.116e-05,2]
[402081333,1768513840645,-500.0,9.116e-05,2]
[402081336,1768513840657,-500.0,9.116e-05,2]
[402081338,1768513840667,-402.16727492,9.116e-05,2]
[402081340,1768513840676,-500.0,9.116e-05,2]
[402081341,1768513840689,-500.0,9.116e-05,2]
[402081343,1768513840698,-500.0,9.116e-05,2]
[402081345,1768513840708,-500.0,9.116e-05,2]
[402081347,1768513840717,-500.0,9.116e-05,2]
[402081349,1768513840728,-500.0,9.116e-05,2]
[402081351,1768513840738,-500.0,9.116e-05,2]
[402081353,1768513840749,-530.37382127,9.116e-05,2]
[402081355,1768513840759,-500.0,9.116e-05,2]
[402081358,1768513840769,-500.0,9.116e-05,2]
[402081360,1768513840778,-500.0,9.116e-05,2]
[402081362,1768513840788,-500.0,9.116e-05,2]
[402081364,1768513840798,-228.45,9.116e-05,2]
[402081366,1768513840807,-3902.40919418,9.117e-05,2]
[402081757,1768513845712,-536.23272564,9.117e-05,2]
[402081764,1768513845774,-337.2,9.117e-05,2]
[402081772,1768513845838,-8047.93052161,9.117e-05,2]
[402085199,1768513899987,500.0,8.981e-05,2]
[402085200,1768513900085,3000.0,8.26e-05,2]
[402085204,1768513900834,500.0,8.981e-05,2]
[402085206,1768513902910,500.0,8.981e-05,2]
[402085210,1768514000500,620.74516703,8.509e-05,2]
[402085211,1768514001813,2482.98066811,9.002e-05,2]
[402085303,1768514192906,500.0,9.017e-05,2]
[402085304,1768514192942,500.0,9.017e-05,2]
[402085305,1768514192979,500.0,9.017e-05,2]
[402085306,1768514193028,500.0,9.017e-05,2]
[402085307,1768514193060,500.0,9.017e-05,2]
[402085308,1768514193108,500.0,9.017e-05,2]